fUST/lending_fUST_20250819
["ID","MTS","AMOUNT","RATE_DAILY","PERIOD"]
[380133987,1755567045104,-480.0,0.00019178,2]
[380133988,1755567045114,-480.0,0.00019178,2]
[380133989,1755567045124,-480.0,0.00019178,2]
[380133990,1755567045134,-151.0,0.00019178,2]
[380133991,1755567045151,-480.0,0.00019178,2]
[380133992,1755567045160,-480.0,0.00019178,2]
[380133993,1755567045171,-182.5422662,0.00019178,2]
[380133994,1755567045181,-461.15512632,0.00019178,2]
[380133995,1755567045190,-480.0,0.00019178,2]
[380133996,1755567045200,-480.0,0.00019178,2]
[380133997,1755567045210,-480.0,0.00019178,2]
[380133998,1755567045219,-1772.92,0.00019178,2]
[380133999,1755567045229,-445.50639448,0.00019178,2]
[380134000,1755567045239,-460.5894521,0.00019178,2]
[380134001,1755567045251,-151.0,0.00019178,2]
[380134002,1755567045261,-480.0,0.00019178,2]
[380134003,1755567045270,-486.19,0.00019178,2]
[380134004,1755567045280,-460.0,0.00019178,2]
[380134005,1755567045289,-480.0,0.00019178,2]
[380134006,1755567045300,-5199.65,0.00019178,2]
[380134007,1755567045312,-480.0,0.00019178,2]
[380134008,1755567045322,-480.0,0.00019178,2]
[380134009,1755567045412,-480.0,0.00019178,2]
[380134010,1755567045422,-480.0,0.00019178,2]
[380134011,1755567045431,-460.65444064,0.00019178,2]
[380134012,1755567045441,-480.0,0.00019178,2]
[380134013,1755567045451,-480.0,0.00019178,2]
[380134014,1755567045460,-152.955621,0.00019178,2]
[380134015,1755567045469,-480.0,0.00019178,2]
[380134016,1755567045478,-460.30883699,0.00019178,2]
[380134017,1755567045488,-480.0,0.00019178,2]
[380134018,1755567045499,-839.11,0.00019178,2]
[380134019,1755567045509,-605.1,0.00019178,2]
[380134020,1755567045518,-644.12,0.00019178,2]
[380134021,1755567045527,-722.33,0.00019178,2]
[380134022,1755567045536,-480.0,0.00019178,2]
[380134023,1755567045546,-480.0,0.00019178,2]
[380134024,1755567045555,-500.0,0.00019178,2]
[380134025,1755567045564,-480.0,0.00019178,2]
[380134026,1755567045573,-500.0,0.00019178,2]
[380134027,1755567045583,-480.0,0.00019178,2]
[380134028,1755567045592,-614.15,0.00019178,2]
[380134029,1755567045601,-480.0,0.00019178,2]
[380134030,1755567045610,-480.0,0.00019178,2]
[380134031,1755567045619,-480.0,0.00019178,2]
[380134032,1755567045629,-480.0,0.00019178,2]
[380134033,1755567045638,-480.0,0.00019178,2]
[380134034,1755567045648,-480.0,0.00019178,2]
[380134035,1755567045658,-151.0,0.00019178,2]
[380134036,1755567045667,-480.0,0.00019178,2]
[380134037,1755567045676,-480.0,0.00019178,2]
[380134038,1755567045686,-480.0,0.00019178,2]
[380134039,1755567045695,-151.0,0.00019178,2]
[380134040,1755567045705,-480.0,0.00019178,2]
[380134041,1755567045714,-480.0,0.00019178,2]
[380134042,1755567045723,-480.0,0.00019178,2]
[380134043,1755567045732,-480.0,0.00019178,2]
[380134044,1755567045744,-480.0,0.00019178,2]
[380134045,1755567045753,-480.0,0.00019178,2]
[380134046,1755567045763,-484.40585336,0.00019178,2]
[380134047,1755567045772,-480.0,0.00019178,2]
[380134048,1755567045782,-528.03,0.00019178,2]
[380134049,1755567045792,-151.0,0.00019178,2]
[380134050,1755567045801,-480.0,0.00019178,2]
[380134051,1755567045811,-1883.9,0.00019178,2]
[380134052,1755567045820,-480.0,0.00019178,2]
[380134053,1755567045830,-480.0,0.00019178,2]
[380134054,1755567045839,-483.85303561,0.00019178,2]
[380134055,1755567045848,-480.0,0.00019178,2]
[380134056,1755567045858,-480.0,0.00019178,2]
[380134057,1755567045868,-151.0,0.00019178,2]
[380134058,1755567045877,-480.0,0.00019178,2]
[380134060,1755567045887,-480.0,0.00019178,2]
[380134062,1755567045896,-151.079774,0.00019178,2]
[380134064,1755567045906,-570.37,0.00019178,2]
[380134066,1755567045915,-484.14033501,0.00019178,2]
[380134067,1755567045925,-600.57,0.00019178,2]
[380134070,1755567045939,-151.939281,0.00019178,2]
[380134072,1755567045948,-484.4175905,0.00019178,2]
[380134073,1755567045958,-462.33473141,0.00019178,2]
[380134075,1755567045969,-480.0,0.00019178,2]
[380134077,1755567045981,-259.27459512,0.00019178,2]
[380134080,1755567045993,-480.0,0.00019178,2]
[380134081,1755567046003,-750.67,0.00019178,2]
[380134084,1755567046013,-352.16198371,0.00019178,2]
[380134086,1755567046023,-1549.16,0.00019178,2]
[380134088,1755567046032,-482.74411527,0.00019178,2]
[380134089,1755567046042,-480.0,0.00019178,2]
[380134091,1755567046051,-483.33651207,0.00019178,2]
[380134093,1755567046061,-666.0,0.00019178,2]
[380134095,1755567046070,-506.6749051,0.00019178,2]
[380134097,1755567046080,-5888.0,0.00019196,2]
[380134099,1755567046089,-175.0,0.00019197,2]
[380134101,1755567046099,-231.0,0.00019209,2]
[380134103,1755567046109,-791.12326329,0.00019215,2]
[380134105,1755567046120,-791.12326329,0.00019284,2]
[380134107,1755567046129,-153.0,0.000193,2]
[380134109,1755567046139,-154.9004359,0.000193,2]
[380134111,1755567046148,-151.0,0.00019329,2]
[380134113,1755567046157,-151.0,0.00019329,2]
[380134115,1755567046167,-282.942659,0.00019329,2]
[380134117,1755567046177,-282.942659,0.00019329,2]
[380134119,1755567046187,-151.0,0.00019329,2]
[380134120,1755567046196,-151.0,0.00019329,2]
[380134122,1755567046206,-151.0,0.00019329,2]
[380134124,1755567046216,-151.0,0.00019329,2]
[380134127,1755567046226,-151.0,0.00019329,2]
[380134129,1755567046236,-151.0,0.00019329,2]
[380134131,1755567046248,-221.146361,0.00019329,2]
[380134132,1755567046258,-151.0,0.00019329,2]
[380134135,1755567046268,-151.0,0.00019329,2]
[380134137,1755567046278,-152.182987,0.00019329,2]
[380134138,1755567046287,-2456.92403049,0.00019329,2]
[380134154,1755567046437,-9972.16237074,0.00019329,2]
[380134215,1755567047024,-151.0,0.00019178,2]
[380134217,1755567047033,-237.59322086,0.00019178,2]
[380134219,1755567047042,-480.0,0.00019178,2]
[380134221,1755567047051,-151.0,0.00019178,2]
[380134223,1755567047062,-480.0,0.00019178,2]
[380134225,1755567047071,-446.32057051,0.00019178,2]
[380134227,1755567047080,-151.0,0.00019329,2]
[380134229,1755567047089,-151.0,0.00019329,2]
[380134231,1755567047099,-5215.60257711,0.00019329,2]
[380134294,1755567047692,1000.0,0.00028767,120]
[380134426,1755567065278,1000.0,0.00028767,120]
[380134427,1755567072831,1000.0,0.00028767,120]
[380134428,1755567093121,984.76416853,0.00028074,120]
[380134429,1755567172791,1655.62767877,0.00027073,60]
[380134430,1755567181629,152.0,0.00027073,60]
[380134431,1755567182576,3319.743576,0.00027073,120]
[380134440,1755567465741,195.100969,0.00013699,2]
[380134444,1755567815159,600.0,0.00028,120]
[380134446,1755567883789,561.0,0.00028,120]
[380134447,1755567904358,747.0,0.0001844,2]
[380134448,1755567909367,747.0,0.00018438,2]
[380134450,1755568001102,-446.15369234,0.00018629,2]
[380134452,1755568054096,-300.84630766,0.00018629,2]
[380134453,1755568054127,-747.0,0.00018795,2]
[380134454,1755568054160,-150.9674525,0.000189,2]
[380134455,1755568054194,-655.14968245,0.000189,2]
[380134456,1755568054226,-133.28857884,0.00018945,2]
[380134457,1755568054261,-34.71142116,0.00018945,2]
[380134458,1755568054283,-253.04782704,0.00019061,2]
[380134505,1755568232287,-925.54040766,0.00019076,2]
[380134512,1755568232342,-274.45959234,0.00019076,2]
[380134514,1755568232352,-300.0,0.00019077,2]
[380134516,1755568232366,-300.0,0.00019077,2]
[380134518,1755568232375,-300.0,0.00019077,2]
[380134520,1755568232384,-1240.74257037,0.00019078,2]
[380134522,1755568232393,-10925.79783729,0.00019078,2]
[380134523,1755568232407,-160.80265121,0.00019078,2]
[380134524,1755568232416,-492.48220078,0.00019078,2]
[380134534,1755568235180,-1277.39615403,0.00019078,2]
[380134535,1755568235191,-1442.06639537,0.00019078,2]
[380134536,1755568235202,-3374.18180398,0.00019112,2]
[380134551,1755568238139,-5504.04105254,0.00019112,2]
[380134552,1755568238148,-1240.74257036,0.00019147,2]
[380134553,1755568238158,-2183.31810187,0.00019155,2]
[380134554,1755568238167,-242.3624291,0.00019155,2]
[380134555,1755568238177,-7916.08284208,0.00019166,2]
[380134556,1755568238188,-1116.52401178,0.00019166,2]
[380134557,1755568238199,-8809.91559414,0.00019166,2]
[380134559,1755568238208,-151.6149592,0.00019166,2]
[380134560,1755568238218,-168.0,0.00019168,2]
[380134561,1755568238227,-164.38,0.00019168,3]
[380134563,1755568238236,-493.18,0.00019168,3]
[380134564,1755568238245,-500.0,0.00019173,2]
[380134567,1755568238255,-500.0,0.00019173,2]
[380134570,1755568238265,-500.0,0.00019173,2]
[380134573,1755568238275,-454.73735137,0.00019173,2]
[380134576,1755568238284,-503.11783416,0.00019173,2]
[380134579,1755568238293,-269.95031563,0.00019173,2]
[380134582,1755568238303,-500.0,0.00019173,2]
[380134584,1755568238313,-500.0,0.00019173,2]
[380134586,1755568238322,-500.0,0.00019173,2]
[380134588,1755568238331,-500.0,0.00019173,2]
[380134590,1755568238341,-500.0,0.00019173,2]
[380134603,1755568238467,-500.0,0.00019173,2]
[380134604,1755568238477,-206.54360322,0.00019177,2]
[380134605,1755568238487,-402.52370245,0.00019178,2]
[380134606,1755568238496,-480.0,0.00019178,2]
[380134607,1755568238509,-480.0,0.00019178,2]
[380134608,1755568238523,-480.0,0.00019178,2]
[380134609,1755568238533,-480.0,0.00019178,2]
[380134610,1755568238543,-182.42586438,0.00019178,2]
[380134611,1755568238553,-480.0,0.00019178,2]
[380134612,1755568238563,-480.0,0.00019178,2]
[380134613,1755568238572,-406.04324337,0.00019178,2]
[380134614,1755568238581,-480.0,0.00019178,2]
[380134615,1755568238590,-480.0,0.00019178,2]
[380134616,1755568238600,-452.87373788,0.00019178,2]
[380134617,1755568238610,-480.0,0.00019178,2]
[380134618,1755568238620,-563.43479515,0.00019178,2]
[380134619,1755568238630,-482.23428221,0.00019178,2]
[380134620,1755568238641,-465.17456108,0.00019178,2]
[380134621,1755568238651,-480.0,0.00019178,2]
[380134622,1755568238661,-175.42134369,0.00019178,2]
[380134623,1755568238670,-483.05200788,0.00019178,2]
[380134624,1755568238680,-480.0,0.00019178,2]
[380134625,1755568238689,-480.0,0.00019178,2]
[380134626,1755568238698,-480.0,0.00019178,2]
[380134627,1755568238708,-480.0,0.00019178,2]
[380134628,1755568238718,-522.42,0.00019178,2]
[380134629,1755568238727,-480.0,0.00019178,2]
[380134630,1755568238736,-486.00558647,0.00019178,2]
[380134631,1755568238745,-480.0,0.00019178,2]
[380134632,1755568238754,-481.27488764,0.00019178,2]
[380134633,1755568238763,-480.0,0.00019178,2]
[380134634,1755568238773,-480.0,0.00019178,2]
[380134635,1755568238782,-480.0,0.00019178,2]
[380134636,1755568238792,-480.0,0.00019178,2]
[380134637,1755568238801,-483.33710453,0.00019178,2]
[380134638,1755568238810,-480.0,0.00019178,2]
[380134639,1755568238819,-301.61840078,0.00019178,2]
[380134640,1755568238829,-480.0,0.00019178,2]
[380134641,1755568238839,-483.21353042,0.00019178,2]
[380134642,1755568238848,-480.0,0.00019178,2]
[380134643,1755568238857,-480.0,0.00019178,2]
[380134644,1755568238867,-158.37470156,0.00019178,2]
[380134645,1755568238877,-482.09233654,0.00019178,2]
[380134646,1755568238886,-480.0,0.00019178,2]
[380134647,1755568238895,-483.42851594,0.00019178,2]
[380134648,1755568238905,-480.0,0.00019178,2]
[380134649,1755568238914,-448.05589175,0.00019178,2]
[380134650,1755568238924,-480.0,0.00019178,2]
[380134651,1755568238934,-480.0,0.00019178,2]
[380134652,1755568238943,-480.0,0.00019178,2]
[380134653,1755568238952,-480.0,0.00019178,2]
[380134654,1755568238962,-577.77666721,0.00019178,2]
[380134655,1755568238972,-500.0,0.00019178,2]
[380134656,1755568238981,-500.0,0.00019178,2]
[380134658,1755568238990,-500.0,0.00019178,2]
[380134659,1755568238999,-500.0,0.00019178,2]
[380134660,1755568239009,-480.0,0.00019178,2]
[380134661,1755568239018,-500.0,0.00019178,2]
[380134662,1755568239031,-500.0,0.00019178,2]
[380134663,1755568239040,-500.0,0.00019178,2]
[380134664,1755568239050,-500.0,0.00019178,2]
[380134665,1755568239059,-500.0,0.00019178,2]
[380134666,1755568239068,-522.27057817,0.00019178,2]
[380134667,1755568239078,-485.74969757,0.00019178,2]
[380134668,1755568239088,-480.0,0.00019178,2]
[380134669,1755568239097,-380.76721588,0.00019178,2]
[380134670,1755568239106,-725.4,0.00019178,2]
[380134671,1755568239116,-659.54,0.00019178,2]
[380134672,1755568239125,-485.39110969,0.00019178,2]
[380134673,1755568239134,-480.0,0.00019178,2]
[380134675,1755568239143,-480.0,0.00019178,2]
[380134677,1755568239153,-424.27156781,0.00019178,2]
[380134679,1755568239162,-480.0,0.00019178,2]
[380134681,1755568239172,-480.0,0.00019178,2]
[380134683,1755568239181,-1003.54782065,0.00019178,2]
[380134685,1755568239191,-480.0,0.00019178,2]
[380134687,1755568239200,-480.0,0.00019178,2]
[380134689,1755568239209,-480.0,0.00019178,2]
[380134691,1755568239218,-480.0,0.00019178,2]
[380134693,1755568239227,-480.0,0.00019178,2]
[380134695,1755568239236,-480.0,0.00019178,2]
[380134697,1755568239245,-480.0,0.00019178,2]
[380134699,1755568239255,-480.0,0.00019178,2]
[380134701,1755568239264,-481.95954637,0.00019178,2]
[380134703,1755568239275,-480.0,0.00019178,2]
[380134705,1755568239284,-480.0,0.00019178,2]
[380134706,1755568239293,-2068.93,0.00019178,2]
[380134707,1755568239302,-480.0,0.00019178,2]
[380134708,1755568239312,-534.7,0.00019178,2]
[380134709,1755568239322,-278.71802117,0.00019178,2]
[380134710,1755568239332,-480.0,0.00019178,2]
[380134712,1755568239341,-480.0,0.00019178,2]
[380134714,1755568239350,-480.0,0.00019178,2]
[380134716,1755568239361,-480.0,0.00019178,2]
[380134717,1755568239372,-421.10130979,0.00019178,2]
[380134718,1755568239381,-480.0,0.00019178,2]
[380134719,1755568239391,-862.3,0.00019178,2]
[380134720,1755568239400,-480.0,0.00019178,2]
[380134721,1755568239410,-480.0,0.00019178,2]
[380134722,1755568239419,-480.0,0.00019178,2]
[380134723,1755568239429,-484.26603514,0.00019178,2]
[380134724,1755568239438,-480.0,0.00019178,2]
[380134725,1755568239447,-844.59,0.00019178,2]
[380134726,1755568239457,-484.35226704,0.00019178,2]
[380134727,1755568239466,-480.0,0.00019178,2]
[380134728,1755568239475,-492.10204499,0.00019178,2]
[380134729,1755568239484,-480.0,0.00019178,2]
[380134730,1755568239493,-480.0,0.00019178,2]
[380134731,1755568239502,-480.0,0.00019178,2]
[380134732,1755568239511,-536.21400313,0.00019178,2]
[380134733,1755568239521,-480.0,0.00019178,2]
[380134734,1755568239531,-480.0,0.00019178,2]
[380134735,1755568239540,-534.86,0.00019178,2]
[380134736,1755568239550,-480.0,0.00019178,2]
[380134737,1755568239563,-162.96482235,0.00019178,2]
[380134738,1755568239581,-482.43758831,0.00019178,2]
[380134739,1755568239594,-480.0,0.00019178,2]
[380134740,1755568239603,-480.0,0.00019178,2]
[380134741,1755568239613,-480.0,0.00019178,2]
[380134742,1755568239623,-480.0,0.00019178,2]
[380134743,1755568239632,-480.0,0.00019178,2]
[380134745,1755568239640,-483.53420393,0.00019178,2]
[380134746,1755568239649,-461.22491904,0.00019178,2]
[380134747,1755568239658,-480.0,0.00019178,2]
[380134748,1755568239667,-480.0,0.00019178,2]
[380134749,1755568239676,-482.69468174,0.00019178,2]
[380134750,1755568239685,-482.60378996,0.00019178,2]
[380134752,1755568239694,-480.0,0.00019178,2]
[380134753,1755568239703,-481.92785345,0.00019178,2]
[380134754,1755568239713,-480.0,0.00019178,2]
[380134755,1755568239722,-462.11456899,0.00019178,2]
[380134756,1755568239732,-486.83,0.00019178,2]
[380134758,1755568239740,-527.9537116,0.00019178,2]
[380134759,1755568239749,-480.0,0.00019178,2]
[380134761,1755568239759,-480.0,0.00019178,2]
[380134763,1755568239768,-480.0,0.00019178,2]
[380134766,1755568239778,-483.25401158,0.00019178,2]
[380134768,1755568239787,-480.0,0.00019178,2]
[380134770,1755568239797,-480.0,0.00019178,2]
[380134772,1755568239806,-481.08441388,0.00019178,2]
[380134774,1755568239815,-480.0,0.00019178,2]
[380134776,1755568239825,-480.0,0.00019178,2]
[380134778,1755568239833,-480.0,0.00019178,2]
[380134780,1755568239843,-480.0,0.00019178,2]
[380134782,1755568239852,-480.0,0.00019178,2]
[380134784,1755568239860,-4290.94,0.00019178,2]
[380134786,1755568239869,-480.0,0.00019178,2]
[380134788,1755568239878,-814.3,0.00019178,2]
[380134790,1755568239888,-480.0,0.00019178,2]
[380134791,1755568239897,-480.0,0.00019178,2]
[380134793,1755568239907,-480.0,0.00019178,2]
[380134795,1755568239916,-480.0,0.00019178,2]
[380134797,1755568239925,-480.0,0.00019178,2]
[380134799,1755568239935,-480.0,0.00019178,2]
[380134801,1755568239944,-462.15811046,0.00019178,2]
[380134803,1755568239953,-480.0,0.00019178,2]
[380134805,1755568239963,-480.0,0.00019178,2]
[380134807,1755568239972,-480.0,0.00019178,2]
[380134808,1755568239981,-480.0,0.00019178,2]
[380134809,1755568239990,-464.4641217,0.00019178,2]
[380134810,1755568239999,-480.0,0.00019178,2]
[380134811,1755568240008,-440.95951233,0.00019178,2]
[380134812,1755568240017,-480.0,0.00019178,2]
[380134813,1755568240027,-480.0,0.00019178,2]
[380134814,1755568240036,-464.02567874,0.00019178,2]
[380134815,1755568240046,-480.0,0.00019178,2]
[380134816,1755568240057,-480.0,0.00019178,2]
[380134817,1755568240067,-480.0,0.00019178,2]
[380134818,1755568240077,-480.0,0.00019178,2]
[380134819,1755568240088,-443.65668335,0.00019178,2]
[380134820,1755568240097,-480.0,0.00019178,2]
[380134821,1755568240108,-480.0,0.00019178,2]
[380134822,1755568240117,-480.0,0.00019178,2]
[380134823,1755568240127,-480.0,0.00019178,2]
[380134824,1755568240136,-462.45053689,0.00019178,2]
[380134825,1755568240144,-480.0,0.00019178,2]
[380134826,1755568240154,-480.0,0.00019178,2]
[380134827,1755568240163,-480.0,0.00019178,2]
[380134828,1755568240172,-465.00466133,0.00019178,2]
[380134829,1755568240182,-480.0,0.00019178,2]
[380134830,1755568240192,-480.0,0.00019178,2]
[380134831,1755568240201,-480.0,0.00019178,2]
[380134832,1755568240211,-480.0,0.00019178,2]
[380134833,1755568240221,-463.2962416,0.00019178,2]
[380134834,1755568240231,-480.0,0.00019178,2]
[380134835,1755568240241,-480.0,0.00019178,2]
[380134836,1755568240250,-886.6,0.00019178,2]
[380134837,1755568240261,-480.0,0.00019178,2]
[380134838,1755568240271,-480.0,0.00019178,2]
[380134839,1755568240366,-242.95365959,0.00019178,2]
[380134840,1755568240377,-480.0,0.00019178,2]
[380134841,1755568240386,-480.0,0.00019178,2]
[380134842,1755568240396,-462.87551196,0.00019178,2]
[380134843,1755568240406,-480.0,0.00019178,2]
[380134844,1755568240417,-482.12849139,0.00019178,2]
[380134845,1755568240427,-480.0,0.00019178,2]
[380134846,1755568240437,-1433.63,0.00019178,2]
[380134847,1755568240447,-480.0,0.00019178,2]
[380134848,1755568240456,-480.0,0.00019178,2]
[380134849,1755568240466,-483.45870459,0.00019178,2]
[380134850,1755568240475,-480.0,0.00019178,2]
[380134851,1755568240484,-480.0,0.00019178,2]
[380134852,1755568240494,-719.68,0.00019178,2]
[380134853,1755568240503,-480.0,0.00019178,2]
[380134854,1755568240513,-483.08066687,0.00019178,2]
[380134855,1755568240523,-480.0,0.00019178,2]
[380134856,1755568240533,-480.0,0.00019178,2]
[380134857,1755568240542,-480.0,0.00019178,2]
[380134858,1755568240551,-483.41489811,0.00019178,2]
[380134859,1755568240561,-480.0,0.00019178,2]
[380134860,1755568240571,-480.0,0.00019178,2]
[380134861,1755568240580,-480.0,0.00019178,2]
[380134862,1755568240589,-480.0,0.00019178,2]
[380134863,1755568240599,-480.0,0.00019178,2]
[380134864,1755568240608,-480.0,0.00019178,2]
[380134865,1755568240617,-480.0,0.00019178,2]
[380134866,1755568240626,-480.0,0.00019178,2]
[380134867,1755568240635,-480.0,0.00019178,2]
[380134868,1755568240645,-464.2261944,0.00019178,2]
[380134869,1755568240654,-480.0,0.00019178,2]
[380134870,1755568240664,-480.0,0.00019178,2]
[380134871,1755568240673,-480.0,0.00019178,2]
[380134872,1755568240683,-480.0,0.00019178,2]
[380134873,1755568240691,-480.0,0.00019178,2]
[380134874,1755568240699,-480.0,0.00019178,2]
[380134875,1755568240708,-480.0,0.00019178,2]
[380134876,1755568240717,-206.03066389,0.00019178,2]
[380134877,1755568240727,-480.0,0.00019178,2]
[380134878,1755568240735,-480.0,0.00019178,2]
[380134879,1755568240744,-480.0,0.00019178,2]
[380134880,1755568240752,-480.0,0.00019178,2]
[380134881,1755568240761,-480.0,0.00019178,2]
[380134882,1755568240771,-500.0,0.00019178,2]
[380134883,1755568240780,-481.31096931,0.00019178,2]
[380134884,1755568240789,-480.0,0.00019178,2]
[380134885,1755568240798,-480.0,0.00019178,2]
[380134886,1755568240807,-441.90157927,0.00019178,2]
[380134887,1755568240817,-480.0,0.00019178,2]
[380134888,1755568240826,-661.4,0.00019178,2]
[380134889,1755568240836,-361.154715,0.00019178,2]
[380134890,1755568240845,-481.80553706,0.00019178,2]
[380134891,1755568240855,-480.0,0.00019178,2]
[380134892,1755568240864,-480.0,0.00019178,2]
[380134893,1755568240874,-480.0,0.00019178,2]
[380134894,1755568240883,-480.0,0.00019178,2]
[380134895,1755568240893,-440.83753075,0.00019178,2]
[380134896,1755568240902,-480.0,0.00019178,2]
[380134897,1755568240911,-484.59701226,0.00019178,2]
[380134898,1755568240921,-480.0,0.00019178,2]
[380134899,1755568240931,-480.0,0.00019178,2]
[380134900,1755568240940,-1128.2,0.00019178,2]
[380134901,1755568240949,-480.0,0.00019178,2]
[380134902,1755568240959,-480.0,0.00019178,2]
[380134903,1755568240968,-480.0,0.00019178,2]
[380134904,1755568240977,-480.0,0.00019178,2]
[380134905,1755568240987,-1953.1,0.00019178,2]
[380134906,1755568240997,-480.0,0.00019178,2]
[380134907,1755568241006,-480.0,0.00019178,2]
[380134908,1755568241015,-480.0,0.00019178,2]
[380134909,1755568241025,-480.0,0.00019178,2]
[380134910,1755568241035,-480.0,0.00019178,2]
[380134911,1755568241044,-482.20622241,0.00019178,2]
[380134912,1755568241054,-2091.7,0.00019178,2]
[380134913,1755568241064,-480.0,0.00019178,2]
[380134914,1755568241073,-443.53817625,0.00019178,2]
[380134915,1755568241082,-706.97,0.00019178,2]
[380134916,1755568241091,-480.0,0.00019178,2]
[380134917,1755568241101,-4160.3,0.00019178,2]
[380134918,1755568241110,-480.0,0.00019178,2]
[380134919,1755568241120,-1053.5,0.00019178,2]
[380134920,1755568241129,-175.51775,0.00019178,2]
[380134921,1755568241138,-534.31962339,0.00019178,2]
[380134922,1755568241147,-175.51775,0.00019178,2]
[380134923,1755568241157,-510.82895302,0.00019178,2]
[380134924,1755568241167,-480.0,0.00019178,2]
[380134925,1755568241176,-1246.45,0.00019178,2]
[380134926,1755568241185,-151.0,0.00019178,2]
[380134927,1755568241194,-483.19239478,0.00019178,2]
[380134928,1755568241204,-480.0,0.00019178,2]
[380134929,1755568241213,-481.27594301,0.00019178,2]
[380134930,1755568241222,-480.0,0.00019178,2]
[380134931,1755568241232,-151.0,0.00019178,2]
[380134932,1755568241242,-480.0,0.00019178,2]
[380134933,1755568241251,-480.0,0.00019178,2]
[380134934,1755568241262,-589.74,0.00019178,2]
[380134935,1755568241273,-480.0,0.00019178,2]
[380134936,1755568241283,-480.0,0.00019178,2]
[380134937,1755568241293,-151.0,0.00019178,2]
[380134938,1755568241304,-480.0,0.00019178,2]
[380134939,1755568241314,-480.0,0.00019178,2]
[380134940,1755568241324,-480.0,0.00019178,2]
[380134941,1755568241334,-480.0,0.00019178,2]
[380134942,1755568241343,-236.71166,0.00019178,2]
[380134943,1755568241352,-499.53668265,0.00019178,2]
[380134944,1755568241363,-480.9086577,0.00019178,2]
[380134945,1755568241374,-460.0,0.00019178,2]
[380134946,1755568241383,-236.71166,0.00019178,2]
[380134947,1755568241392,-724.74,0.00019178,2]
[380134948,1755568241401,-480.0,0.00019178,2]
[380134949,1755568241411,-480.0,0.00019178,2]
[380134950,1755568241420,-480.0,0.00019178,2]
[380134951,1755568241430,-480.0,0.00019178,2]
[380134952,1755568241440,-536.72,0.00019178,2]
[380134953,1755568241449,-738.1,0.00019178,2]
[380134954,1755568241458,-435.362071,0.00019178,2]
[380134955,1755568241468,-1349.07,0.00019178,2]
[380134956,1755568241477,-208.074288,0.00019178,2]
[380134957,1755568241487,-151.0,0.00019178,2]
[380134958,1755568241497,-788.2,0.00019178,2]
[380134959,1755568241506,-435.362071,0.00019178,2]
[380134960,1755568241515,-846.95,0.00019178,2]
[380134961,1755568241526,-480.0,0.00019178,2]
[380134963,1755568241536,-208.074288,0.00019178,2]
[380134964,1755568241545,-480.0,0.00019178,2]
[380134966,1755568241554,-480.0,0.00019178,2]
[380134967,1755568241564,-944.31,0.00019178,2]
[380134968,1755568241573,-846.95,0.00019178,2]
[380134969,1755568241582,-846.95,0.00019178,2]
[380134971,1755568241592,-480.0,0.00019178,2]
[380134972,1755568241601,-846.95,0.00019178,2]
[380134973,1755568241611,-846.95,0.00019178,2]
[380134974,1755568241621,-846.95,0.00019178,2]
[380134975,1755568241631,-846.95,0.00019178,2]